[Event "NJSK 2026 Jeugd C"]
[Site "Helmond, Netherlands"]
[Date "2026.04.29"]
[Round "6.5"]
[White "Koppenens, Oscar"]
[Black "Botter, Simon"]
[Result "0-1"]
[TimeControl "90min/40moves + 30sec/move"]
[WhiteTitle "-"]
[BlackTitle "-"]
[WhiteFideId "1087940"]
[BlackFideId "40107698"]
[WhiteElo "2036"]
[BlackElo "1988"]

1. e4 {[%clk 01:30:57]} {[%emt 00:00:02]} c5 {[%clk 01:30:57]} {[%emt
00:00:04]} 2. Nf3 {[%clk 01:31:21]} {[%emt 00:00:06]} d6 {[%clk 01:31:23]}
{[%emt 00:00:04]} 3. d4 {[%clk 01:31:39]} {[%emt 00:00:12]} cxd4 {[%clk
01:31:48]} {[%emt 00:00:05]} 4. Nxd4 {[%clk 01:32:03]} {[%emt 00:00:05]} Nf6
{[%clk 01:32:15]} {[%emt 00:00:03]} 5. Nc3 {[%clk 01:32:25]} {[%emt 00:00:08]}
a6 {[%clk 01:32:42]} {[%emt 00:00:04]} 6. Be3 {[%clk 01:32:40]} {[%emt
00:00:15]} e5 {[%clk 01:32:53]} {[%emt 00:00:18]} 7. Nf3 {[%clk 01:32:47]}
{[%emt 00:00:23]} Be7 {[%clk 01:30:38]} {[%emt 00:02:46]} 8. Bc4 {[%clk
01:33:09]} {[%emt 00:00:07]} Be6 {[%clk 01:29:44]} {[%emt 00:01:25]} 9. Bxe6
{[%clk 01:33:31]} {[%emt 00:00:08]} fxe6 {[%clk 01:30:10]} {[%emt 00:00:04]} 10.
Ng5 {[%clk 01:33:52]} {[%emt 00:00:09]} Qd7 {[%clk 01:28:40]} {[%emt 00:01:59]}
11. Qf3 {[%clk 01:33:57]} {[%emt 00:00:25]} d5 {[%clk 01:28:16]} {[%emt
00:00:54]} 12. O-O-O {[%clk 01:31:43]} {[%emt 00:02:43]} d4 {[%clk 01:27:52]}
{[%emt 00:00:55]} 13. Bxd4 {[%clk 01:32:06]} {[%emt 00:00:07]} exd4 {[%clk
01:28:16]} {[%emt 00:00:07]} 14. e5 {[%clk 01:32:31]} {[%emt 00:00:04]} O-O
{[%clk 01:28:36]} {[%emt 00:00:10]} 15. Qh3 {[%clk 01:30:41]} {[%emt 00:02:20]}
h6 {[%clk 01:27:32]} {[%emt 00:01:34]} 16. exf6 {[%clk 01:29:52]} {[%emt
00:01:20]} Rxf6 {[%clk 01:27:37]} {[%emt 00:00:25]} 17. Nge4 {[%clk 01:23:31]}
{[%emt 00:06:50]} Rf5 {[%clk 01:25:04]} {[%emt 00:03:04]} 18. Rhe1 {[%clk
01:20:30]} {[%emt 00:03:30]} Nc6 {[%clk 01:21:49]} {[%emt 00:03:46]} 19. Ne2
{[%clk 01:06:53]} {[%emt 00:14:05]} Rc8 {[%clk 01:03:08]} {[%emt 00:19:12]} 20.
Kb1 {[%clk 01:06:54]} {[%emt 00:00:29]} Rd8 {[%clk 00:57:31]} {[%emt 00:06:08]}
21. f4 {[%clk 01:02:04]} {[%emt 00:05:19]} Rd5 {[%clk 00:42:26]} {[%emt
00:15:33]} 22. Nc1 {[%clk 00:57:46]} {[%emt 00:04:49]} e5 {[%clk 00:42:01]}
{[%emt 00:00:55]} 23. f5 {[%clk 00:53:35]} {[%emt 00:04:41]} Na5 {[%clk
00:38:02]} {[%emt 00:04:29]} 24. g4 {[%clk 00:51:41]} {[%emt 00:02:23]} Nc4
{[%clk 00:37:04]} {[%emt 00:01:29]} 25. Rd3 {[%clk 00:47:07]} {[%emt 00:05:03]}
Qc6 {[%clk 00:30:19]} {[%emt 00:07:14]} 26. Qf3 {[%clk 00:41:06]} {[%emt
00:06:32]} a5 {[%clk 00:26:55]} {[%emt 00:03:54]} 27. h4 {[%clk 00:30:54]}
{[%emt 00:10:42]} a4 {[%clk 00:18:13]} {[%emt 00:09:13]} 28. Re2 {[%clk
00:27:33]} {[%emt 00:03:50]} Rb5 {[%clk 00:12:15]} {[%emt 00:06:28]} 29. c3
{[%clk 00:27:56]} {[%emt 00:00:07]} Nxb2 {[%clk 00:10:10]} {[%emt 00:02:35]} 30.
Rxb2 {[%clk 00:27:56]} {[%emt 00:00:29]} Ba3 {[%clk 00:10:21]} {[%emt
00:00:19]} 31. Rxb5 {[%clk 00:25:52]} {[%emt 00:02:34]} Qxb5+ {[%clk 00:10:43]}
{[%emt 00:00:08]} 32. Kc2 {[%clk 00:26:05]} {[%emt 00:00:17]} Qb2+ {[%clk
00:10:39]} {[%emt 00:00:34]} 33. Kd1 {[%clk 00:26:27]} {[%emt 00:00:08]} Qxc1+
{[%clk 00:11:03]} {[%emt 00:00:07]} 34. Ke2 {[%clk 00:26:53]} {[%emt 00:00:03]}
Qb2+ {[%clk 00:08:19]} {[%emt 00:03:15]} 35. Rd2 {[%clk 00:25:38]} {[%emt
00:01:45]} Qb5+ {[%clk 00:07:59]} {[%emt 00:00:50]} 36. Kf2 {[%clk 00:25:07]}
{[%emt 00:01:00]} Bc1 {[%clk 00:07:55]} {[%emt 00:00:34]} 37. Rd1 {[%clk
00:21:59]} {[%emt 00:03:37]} Be3+ {[%clk 00:08:01]} {[%emt 00:00:25]} 38. Kg2
{[%clk 00:21:17]} {[%emt 00:01:12]} Qb2+ {[%clk 00:08:08]} {[%emt 00:00:25]} 39.
Kh3 {[%clk 00:21:41]} {[%emt 00:00:05]} Qxa2 {[%clk 00:07:50]} {[%emt
00:00:48]} 40. cxd4 {[%clk 00:19:55]} {[%emt 00:02:16]} Bf4 {[%clk 00:07:58]}
{[%emt 00:00:23]} 41. Nf2 {[%clk 00:20:01]} {[%emt 00:00:23]} Qd5 {[%clk
00:07:33]} {[%emt 00:00:56]} 42. Qxd5+ {[%clk 00:19:42]} {[%emt 00:00:48]} Rxd5
{[%clk 00:07:27]} {[%emt 00:00:37]} 43. Rb1 {[%clk 00:17:28]} {[%emt 00:02:48]}
Rxd4 {[%clk 00:07:13]} {[%emt 00:00:41]} 44. Rxb7 {[%clk 00:15:07]} {[%emt
00:02:51]} Rd2 {[%clk 00:07:33]} {[%emt 00:00:09]} 45. g5 {[%clk 00:15:32]}
{[%emt 00:00:05]} Rxf2 {[%clk 00:07:12]} {[%emt 00:00:51]} 46. g6 {[%clk
00:15:56]} {[%emt 00:00:07]} Kf8 {[%clk 00:07:13]} {[%emt 00:00:29]} 47. Rf7+
{[%clk 00:16:17]} {[%emt 00:00:08]} Ke8 {[%clk 00:07:29]} {[%emt 00:00:14]} 48.
Rxg7 {[%clk 00:16:44]} {[%emt 00:00:04]} h5 {[%clk 00:07:53]} {[%emt 00:00:06]}
49. Rg8+ {[%clk 00:16:16]} {[%emt 00:00:57]} Kd7 {[%clk 00:08:13]} {[%emt
00:00:10]} 0-1

[Event "NJSK 2026 Jeugd C"]
[Site "Helmond, Netherlands"]
[Date "2026.04.29"]
[Round "6.6"]
[White "Huang, Vincent"]
[Black "Gupta, Akul"]
[Result "1/2-1/2"]
[TimeControl "90min/40moves + 30sec/move"]
[WhiteTitle "-"]
[BlackTitle "-"]
[WhiteFideId "40104184"]
[BlackFideId "1084194"]
[WhiteElo "1855"]
[BlackElo "2017"]

1. d4 {[%clk 01:30:59]} Nf6 {[%clk 01:30:54]} {[%emt 00:00:06]} 2. c4 {[%clk
01:31:25]} {[%emt 00:00:04]} e6 {[%clk 01:31:14]} {[%emt 00:00:09]} 3. Nc3
{[%clk 01:31:48]} {[%emt 00:00:08]} Bb4 {[%clk 01:31:37]} {[%emt 00:00:06]} 4.
Bd2 {[%clk 01:32:10]} {[%emt 00:00:08]} b6 {[%clk 01:31:00]} {[%emt 00:01:08]}
5. Nf3 {[%clk 01:31:53]} {[%emt 00:00:47]} Bb7 {[%clk 01:31:10]} {[%emt
00:00:19]} 6. e3 {[%clk 01:31:54]} {[%emt 00:00:29]} Bxc3 {[%clk 01:31:04]}
{[%emt 00:00:37]} 7. Bxc3 {[%clk 01:32:17]} {[%emt 00:00:07]} O-O {[%clk
01:30:51]} {[%emt 00:00:43]} 8. Bd3 {[%clk 01:31:57]} {[%emt 00:00:50]} Ne4
{[%clk 01:30:07]} {[%emt 00:01:13]} 9. Rc1 {[%clk 01:30:46]} {[%emt 00:01:42]}
f5 {[%clk 01:29:14]} {[%emt 00:01:22]} 10. O-O {[%clk 01:28:04]} {[%emt
00:03:12]} d6 {[%clk 01:29:38]} {[%emt 00:00:07]} 11. Re1 {[%clk 01:22:14]}
{[%emt 00:06:20]} Nd7 {[%clk 01:27:57]} {[%emt 00:02:11]} 12. Bf1 {[%clk
01:18:04]} {[%emt 00:04:39]} Ndf6 {[%clk 01:20:50]} {[%emt 00:07:37]} 13. Be2
{[%clk 01:08:12]} {[%emt 00:10:22]} Qe8 {[%clk 01:01:35]} {[%emt 00:19:45]} 14.
Rf1 {[%clk 01:00:01]} {[%emt 00:08:41]} Qg6 {[%clk 01:01:04]} {[%emt 00:01:01]}
15. g3 {[%clk 00:56:54]} {[%emt 00:03:38]} Qh6 {[%clk 01:00:22]} {[%emt
00:01:12]} 16. Nh4 {[%clk 00:51:43]} {[%emt 00:05:40]} g5 {[%clk 00:51:35]}
{[%emt 00:09:18]} 17. Ng2 {[%clk 00:50:34]} {[%emt 00:01:38]} g4 {[%clk
00:51:31]} {[%emt 00:00:34]} 18. f4 {[%clk 00:43:40]} {[%emt 00:07:24]} Qh3
{[%clk 00:51:03]} {[%emt 00:00:48]} 19. d5 {[%clk 00:40:41]} {[%emt 00:03:39]}
exd5 {[%clk 00:49:25]} {[%emt 00:02:09]} 20. cxd5 {[%clk 00:37:33]} {[%emt
00:03:39]} Qh6 {[%clk 00:14:26]} {[%emt 00:35:28]} 21. Bxf6 {[%clk 00:34:26]}
{[%emt 00:03:36]} Nxf6 {[%clk 00:14:43]} {[%emt 00:00:13]} 22. Bc4 {[%clk
00:32:12]} {[%emt 00:02:44]} Ne4 {[%clk 00:13:23]} {[%emt 00:01:51]} 23. Nh4
{[%clk 00:30:55]} {[%emt 00:01:46]} Qg7 {[%clk 00:13:02]} {[%emt 00:00:51]} 24.
Rc2 {[%clk 00:29:46]} {[%emt 00:01:40]} Kh8 {[%clk 00:12:16]} {[%emt 00:01:16]}
25. a3 {[%clk 00:28:04]} {[%emt 00:02:12]} a5 {[%clk 00:11:44]} {[%emt
00:01:03]} 26. Qc1 {[%clk 00:27:17]} {[%emt 00:01:16]} Rac8 {[%clk 00:11:31]}
{[%emt 00:00:43]} 27. Ba2 {[%clk 00:25:18]} {[%emt 00:02:28]} Ba6 {[%clk
00:11:36]} {[%emt 00:00:25]} 28. Rd1 {[%clk 00:23:44]} {[%emt 00:02:04]} a4
{[%clk 00:11:14]} {[%emt 00:00:53]} 29. Rd4 {[%clk 00:21:24]} {[%emt 00:02:50]}
Nc5 {[%clk 00:11:18]} {[%emt 00:00:27]} 30. Rc3 {[%clk 00:20:19]} {[%emt
00:01:34]} Rce8 {[%clk 00:10:50]} {[%emt 00:00:58]} 31. Rd1 {[%clk 00:18:27]}
{[%emt 00:02:21]} Be2 {[%clk 00:09:39]} {[%emt 00:01:40]} 32. Rd2 {[%clk
00:18:02]} {[%emt 00:00:56]} Ba6 {[%clk 00:10:03]} {[%emt 00:00:06]} 33. Rd4
{[%clk 00:16:58]} {[%emt 00:01:32]} Re7 {[%clk 00:08:03]} {[%emt 00:02:33]} 34.
Bb1 {[%clk 00:10:32]} {[%emt 00:06:55]} Bc8 {[%clk 00:05:58]} {[%emt 00:02:37]}
35. Bc2 {[%clk 00:09:22]} {[%emt 00:01:38]} Bd7 {[%clk 00:05:25]} {[%emt
00:01:03]} 36. Rd1 {[%clk 00:06:44]} {[%emt 00:03:07]} Qf6 {[%clk 00:04:26]}
{[%emt 00:01:30]} 37. Qd2 {[%clk 00:05:47]} {[%emt 00:01:26]} Bc8 {[%clk
00:02:28]} {[%emt 00:02:29]} 38. Qd4 {[%clk 00:03:22]} {[%emt 00:02:54]} Qxd4
{[%clk 00:02:30]} {[%emt 00:00:28]} 39. Rxd4 {[%clk 00:03:41]} {[%emt
00:00:11]} Bd7 {[%clk 00:01:56]} {[%emt 00:01:05]} 40. Ng2 {[%clk 00:02:29]}
{[%emt 00:01:42]} Rfe8 {[%clk 00:01:57]} {[%emt 00:00:28]} 41. Kf2 {[%clk
00:02:24]} {[%emt 00:00:35]} Kg7 {[%clk 00:02:18]} {[%emt 00:00:09]} 42. Rd1
{[%clk 00:01:43]} {[%emt 00:01:11]} Bb5 {[%clk 00:02:34]} {[%emt 00:00:14]} 43.
Bxf5 {[%clk 00:01:11]} {[%emt 00:01:02]} Kf6 {[%clk 00:02:42]} {[%emt
00:00:22]} 44. Bc2 {[%clk 00:01:15]} {[%emt 00:00:27]} Bd7 {[%clk 00:02:17]}
{[%emt 00:00:54]} 45. Rd4 {[%clk 00:00:57]} {[%emt 00:00:49]} Bf5 {[%clk
00:02:01]} {[%emt 00:00:41]} 46. Bxf5 {[%clk 00:01:06]} {[%emt 00:00:26]} Kxf5
{[%clk 00:02:27]} {[%emt 00:00:03]} 47. Ke2 {[%clk 00:01:06]} {[%emt 00:00:30]}
h5 {[%clk 00:02:35]} {[%emt 00:00:22]} 48. Nh4+ {[%clk 00:01:29]} {[%emt
00:00:08]} Kf6 {[%clk 00:02:59]} {[%emt 00:00:06]} 49. Ng2 {[%clk 00:01:44]}
{[%emt 00:00:15]} Ne4 {[%clk 00:02:12]} {[%emt 00:01:16]} 50. Rc1 {[%clk
00:01:37]} {[%emt 00:00:36]} Nc5 {[%clk 00:02:27]} {[%emt 00:00:16]} 51. Rc3
{[%clk 00:01:36]} {[%emt 00:00:32]} Ne4 {[%clk 00:00:47]} {[%emt 00:02:10]} 52.
Rc1 {[%clk 00:01:28]} {[%emt 00:00:37]} Nc5 {[%clk 00:01:12]} {[%emt 00:00:06]}
53. Rcd1 {[%clk 00:01:31]} {[%emt 00:00:26]} Rh7 {[%clk 00:01:05]} {[%emt
00:00:37]} 54. Rb4 {[%clk 00:00:43]} {[%emt 00:01:18]} Rhe7 {[%clk 00:01:20]}
{[%emt 00:00:15]} 55. Rdd4 {[%clk 00:00:42]} {[%emt 00:00:32]} Nb3 {[%clk
00:01:21]} {[%emt 00:00:26]} 56. Rdc4 {[%clk 00:00:41]} {[%emt 00:00:34]} Nc5
{[%clk 00:01:46]} {[%emt 00:00:05]} 57. Rc3 {[%clk 00:00:51]} {[%emt 00:00:20]}
Ne4 {[%clk 00:01:52]} {[%emt 00:00:23]} 58. Rc1 {[%clk 00:00:52]} {[%emt
00:00:29]} Nc5 {[%clk 00:02:14]} {[%emt 00:00:08]} 1/2-1/2

[Event "NJSK 2026 Jeugd C"]
[Site "Helmond, Netherlands"]
[Date "2026.04.29"]
[Round "6.7"]
[White "Omnes, Tiago"]
[Black "Zhou, Yanyang"]
[Result "0-1"]
[TimeControl "90min/40moves + 30sec/move"]
[WhiteTitle "-"]
[BlackTitle "-"]
[WhiteFideId "1091867"]
[BlackFideId "40109739"]
[WhiteElo "1990"]
[BlackElo "1860"]

1. Nf3 {[%clk 01:30:58]} d5 {[%clk 01:30:53]} {[%emt 00:00:07]} 2. g3 {[%clk
01:31:23]} {[%emt 00:00:06]} g6 {[%clk 01:31:15]} {[%emt 00:00:08]} 3. Bg2
{[%clk 01:31:43]} {[%emt 00:00:09]} Bg7 {[%clk 01:31:40]} {[%emt 00:00:06]} 4.
O-O {[%clk 01:31:49]} {[%emt 00:00:24]} e5 {[%clk 01:31:56]} {[%emt 00:00:14]}
5. c4 {[%clk 01:29:54]} {[%emt 00:02:25]} c6 {[%clk 01:30:43]} {[%emt
00:01:43]} 6. cxd5 {[%clk 01:28:22]} {[%emt 00:02:02]} cxd5 {[%clk 01:30:41]}
{[%emt 00:00:32]} 7. d3 {[%clk 01:27:28]} {[%emt 00:01:24]} Ne7 {[%clk
01:29:02]} {[%emt 00:02:09]} 8. Nc3 {[%clk 01:25:16]} {[%emt 00:02:43]} O-O
{[%clk 01:27:27]} {[%emt 00:02:05]} 9. Bd2 {[%clk 01:05:56]} {[%emt 00:19:49]}
Nbc6 {[%clk 01:26:20]} {[%emt 00:01:38]} 10. e4 {[%clk 01:02:41]} {[%emt
00:03:44]} dxe4 {[%clk 01:23:03]} {[%emt 00:03:47]} 11. dxe4 {[%clk 01:02:44]}
{[%emt 00:00:26]} Nd4 {[%clk 01:22:59]} {[%emt 00:00:35]} 12. Bg5 {[%clk
00:57:14]} {[%emt 00:05:59]} h6 {[%clk 01:19:04]} {[%emt 00:04:24]} 13. Bxe7
{[%clk 00:53:57]} {[%emt 00:03:49]} Qxe7 {[%clk 01:19:29]} {[%emt 00:00:05]} 14.
Nd5 {[%clk 00:53:22]} {[%emt 00:01:05]} Qd8 {[%clk 01:18:49]} {[%emt 00:01:10]}
15. Nxd4 {[%clk 00:44:48]} {[%emt 00:09:04]} exd4 {[%clk 01:19:09]} {[%emt
00:00:08]} 16. f4 {[%clk 00:44:51]} {[%emt 00:00:28]} Be6 {[%clk 01:17:36]}
{[%emt 00:02:03]} 17. Rc1 {[%clk 00:32:59]} {[%emt 00:12:23]} Bxd5 {[%clk
01:16:35]} {[%emt 00:01:31]} 18. exd5 {[%clk 00:33:27]} {[%emt 00:00:02]} Qb6
{[%clk 01:07:18]} {[%emt 00:09:47]} 19. Qd2 {[%clk 00:28:21]} {[%emt 00:05:36]}
Rfe8 {[%clk 01:04:39]} {[%emt 00:03:08]} 20. Kh1 {[%clk 00:25:37]} {[%emt
00:03:13]} Re3 {[%clk 01:04:14]} {[%emt 00:00:57]} 21. f5 {[%clk 00:20:24]}
{[%emt 00:05:43]} Rae8 {[%clk 01:02:39]} {[%emt 00:02:05]} 22. fxg6 {[%clk
00:20:11]} {[%emt 00:00:43]} fxg6 {[%clk 01:02:58]} {[%emt 00:00:11]} 23. Qf2
{[%clk 00:20:09]} {[%emt 00:00:32]} R8e7 {[%clk 00:53:25]} {[%emt 00:10:02]} 24.
Bh3 {[%clk 00:17:20]} {[%emt 00:03:19]} Rc7 {[%clk 00:42:27]} {[%emt 00:11:28]}
25. Be6+ {[%clk 00:12:11]} {[%emt 00:05:40]} Kh7 {[%clk 00:42:32]} {[%emt
00:00:24]} 26. Qd2 {[%clk 00:12:08]} {[%emt 00:00:33]} Rxc1 {[%clk 00:41:41]}
{[%emt 00:01:22]} 27. Rxc1 {[%clk 00:12:36]} {[%emt 00:00:02]} d3 {[%clk
00:40:26]} {[%emt 00:01:45]} 28. Rf1 {[%clk 00:06:33]} {[%emt 00:06:32]} Re2
{[%clk 00:37:44]} {[%emt 00:03:13]} 29. Qxd3 {[%clk 00:07:01]} {[%emt
00:00:02]} Qxb2 {[%clk 00:36:24]} {[%emt 00:01:49]} 30. Qxe2 {[%clk 00:01:41]}
{[%emt 00:05:51]} Qxe2 {[%clk 00:36:44]} {[%emt 00:00:10]} 31. Bh3 {[%clk
00:02:09]} {[%emt 00:00:02]} Qxa2 {[%clk 00:36:05]} {[%emt 00:01:08]} 32. Bg2
{[%clk 00:02:37]} {[%emt 00:00:03]} Qd2 {[%clk 00:35:20]} {[%emt 00:01:15]} 33.
h3 {[%clk 00:02:31]} {[%emt 00:00:36]} a5 {[%clk 00:34:39]} {[%emt 00:01:12]}
34. Bf3 {[%clk 00:02:22]} {[%emt 00:00:38]} Qd3 {[%clk 00:33:43]} {[%emt
00:01:24]} 35. Kg2 {[%clk 00:02:50]} {[%emt 00:00:04]} a4 {[%clk 00:31:35]}
{[%emt 00:02:38]} 36. Rd1 {[%clk 00:03:08]} {[%emt 00:00:11]} Qc2+ {[%clk
00:31:54]} {[%emt 00:00:10]} 37. Kg1 {[%clk 00:03:22]} {[%emt 00:00:18]} a3
{[%clk 00:31:49]} {[%emt 00:00:35]} 38. d6 {[%clk 00:03:50]} {[%emt 00:00:02]}
Qxd1+ {[%clk 00:31:35]} {[%emt 00:00:44]} 39. Bxd1 {[%clk 00:04:18]} {[%emt
00:00:01]} a2 {[%clk 00:31:58]} {[%emt 00:00:06]} 40. d7 {[%clk 00:04:41]}
{[%emt 00:00:07]} Bf6 {[%clk 00:32:16]} {[%emt 00:00:13]} 0-1